bitfinex/quotes_BTCUSD_20250803
["timestamp","ask_amount","ask_price","bid_price","bid_amount"]
[1754199398438,0.0139465,113910.0,113900.0,0.56949836]
[1754199398867,0.5002,113910.0,113900.0,0.56949836]
[1754199399105,0.51394598,113910.0,113900.0,0.56949836]
[1754199399291,0.5493642,113910.0,113900.0,0.56949836]
[1754199399744,0.0493642,113910.0,113900.0,0.56949836]
[1754199399954,0.5493642,113910.0,113900.0,0.56949836]
[1754199400186,0.0493642,113910.0,113900.0,0.6264482]
[1754199400398,0.5493642,113910.0,113900.0,0.6264482]
[1754199401650,0.0493642,113910.0,113900.0,0.6264482]
[1754199401848,0.5493642,113910.0,113900.0,0.6264482]
[1754199402141,0.5493642,113910.0,113900.0,0.43653836]
[1754199402351,0.0493642,113910.0,113900.0,0.56764836]
[1754199402563,0.5493642,113910.0,113900.0,0.56764836]
[1754199404013,0.5493642,113910.0,113900.0,0.21903202]
[1754199404223,0.0493642,113910.0,113900.0,0.56764836]
[1754199404816,0.5493642,113910.0,113900.0,0.56764836]
[1754199406234,0.5493642,113910.0,113900.0,0.56961836]
[1754199406457,0.5493642,113910.0,113900.0,0.6263832]
[1754199406692,0.5493642,113910.0,113900.0,0.22100202]
[1754199406916,0.5493642,113910.0,113900.0,0.56961836]
[1754199407559,0.5493642,113910.0,113900.0,0.22100202]
[1754199407762,0.5493642,113910.0,113900.0,0.56961836]
[1754199407998,0.0493642,113910.0,113900.0,0.56961836]
[1754199408204,0.0493642,113910.0,113900.0,0.6265802]
[1754199408417,0.5493642,113910.0,113900.0,0.6265802]
[1754199410185,0.53561822,113910.0,113900.0,0.6265802]
[1754199411760,0.54936403,113910.0,113900.0,0.27796386]
[1754199411966,0.54936403,113910.0,113900.0,0.56961836]
[1754199413809,0.54936403,113910.0,113900.0,0.22100202]
[1754199414029,0.54936403,113910.0,113900.0,0.56961836]
[1754199414745,0.04936403,113910.0,113900.0,0.56961836]
[1754199415162,0.54936403,113910.0,113900.0,0.56961836]
[1754199415331,0.54936403,113910.0,113900.0,0.6265802]
[1754199418367,0.04936403,113910.0,113900.0,0.6265802]
[1754199418530,0.54936403,113910.0,113900.0,0.6265802]
[1754199420909,0.54936403,113910.0,113900.0,0.27796386]
[1754199421136,0.54936403,113910.0,113900.0,0.56961836]
[1754199421403,0.55760444,113910.0,113900.0,0.56961836]
[1754199424134,0.55760444,113910.0,113900.0,0.22100202]
[1754199424356,0.55760444,113910.0,113900.0,0.56961836]
[1754199425280,0.05760444,113910.0,113900.0,0.56961836]
[1754199425504,0.05760444,113910.0,113900.0,0.6265802]
[1754199425755,0.55760444,113910.0,113900.0,0.6265802]
[1754199426904,0.55761127,113910.0,113900.0,0.6265802]
[1754199427112,0.00824724,113910.0,113900.0,0.6265802]
[1754199427314,0.50824724,113910.0,113900.0,0.6265802]
[1754199427521,0.52199369,113910.0,113900.0,0.6265802]
[1754199427739,0.50824724,113910.0,113900.0,0.6265802]
[1754199429311,0.00824724,113910.0,113900.0,0.6265802]
[1754199429523,0.50824724,113910.0,113900.0,0.6265802]
[1754199430529,0.52199303,113910.0,113900.0,0.6265802]
[1754199431495,0.55809403,113910.0,113900.0,0.4935002]
[1754199431709,0.55809403,113910.0,113900.0,0.6265802]
[1754199432664,0.55809425,113910.0,113900.0,0.6265802]
[1754199432893,0.05809425,113910.0,113900.0,0.6265802]
[1754199433116,0.55809425,113910.0,113900.0,0.4935002]
[1754199433328,0.55809425,113910.0,113900.0,0.6265402]
[1754199433987,0.55809425,113910.0,113900.0,0.22096202]
[1754199434192,0.55809425,113910.0,113900.0,0.56957836]
[1754199434802,0.05809425,113910.0,113900.0,0.56957836]
[1754199435028,0.55809425,113910.0,113900.0,0.56957836]
[1754199441151,0.55809425,113910.0,113900.0,0.22096202]
[1754199441326,0.55809425,113910.0,113900.0,0.56957836]
[1754199441900,0.55809425,113910.0,113900.0,0.6265362]
[1754199448045,0.05809425,113910.0,113900.0,0.6265362]
[1754199448245,0.55809425,113910.0,113900.0,0.6265362]
[1754199449439,0.05809425,113910.0,113900.0,0.6265362]
[1754199449786,0.55809425,113910.0,113900.0,0.6265362]
[1754199451427,0.55809425,113910.0,113900.0,0.22096202]
[1754199451668,0.55809425,113910.0,113900.0,0.56957836]
[1754199451882,0.55809425,113910.0,113900.0,0.56961836]
[1754199455258,0.55809418,113910.0,113900.0,0.56961836]
[1754199455747,0.54984679,113910.0,113900.0,0.56961836]
[1754199455960,0.55809423,113910.0,113900.0,0.56961836]
[1754199456613,0.55809423,113910.0,113900.0,0.22100202]
[1754199456815,0.55809423,113910.0,113900.0,0.56961836]
[1754199457923,0.55809423,113910.0,113900.0,0.6265802]
[1754199459783,0.54434844,113910.0,113900.0,0.6265802]
[1754199466265,0.54434844,113910.0,113900.0,0.27796386]
[1754199466473,0.04434844,113910.0,113900.0,0.56961836]
[1754199466671,0.04434844,113910.0,113900.0,0.22100202]
[1754199466907,0.54434844,113910.0,113900.0,0.56961836]
[1754199468039,0.86673578,113910.0,113900.0,0.028403]
[1754199468489,0.86673578,113910.0,113900.0,0.13496]
[1754199468677,1.30418968,113910.0,113900.0,0.13496]
[1754199468922,1.21535212,113910.0,113900.0,0.002]
[1754199469146,1.21535212,113910.0,113900.0,0.001]
[1754199469571,0.473771,113900.0,113890.0,0.13296]
[1754199469792,0.96359478,113900.0,113880.0,0.16716769]
[1754199470045,0.473771,113890.0,113880.0,0.16716769]
[1754199470261,0.00824744,113890.0,113880.0,0.17023769]
[1754199471113,0.02199604,113890.0,113880.0,0.17023769]
[1754199472012,0.49576704,113890.0,113880.0,0.17023769]
[1754199473430,0.4875196,113890.0,113880.0,0.17023769]
[1754199474086,0.4875196,113890.0,113880.0,0.17027769]
[1754199474338,0.4875196,113890.0,113880.0,0.17127769]
[1754199475055,0.4875196,113890.0,113880.0,0.17227769]
[1754199475926,0.4875196,113890.0,113880.0,0.52089403]
[1754199476165,0.4875196,113890.0,113880.0,0.52296403]
[1754199477244,0.4875196,113890.0,113880.0,0.17434769]
[1754199477471,0.4875196,113890.0,113880.0,0.52296403]
[1754199478194,0.4875196,113890.0,113880.0,0.17434769]
[1754199478411,0.4875196,113890.0,113880.0,0.52296403]
[1754199478624,0.4875196,113890.0,113880.0,0.17434769]
[1754199478851,0.4875196,113890.0,113880.0,0.52296403]
[1754199479053,0.4875196,113890.0,113880.0,0.20076069]
[1754199479327,0.4875196,113890.0,113880.0,0.54937703]
[1754199479746,0.4875196,113890.0,113880.0,0.20076069]
[1754199480001,0.4875196,113890.0,113880.0,0.54937703]
[1754199480221,0.4875196,113890.0,113880.0,0.20076069]
[1754199480423,0.4875196,113890.0,113880.0,0.54937703]
[1754199482531,0.0137486,113890.0,113880.0,0.54937703]
[1754199482822,0.4875196,113890.0,113880.0,0.54937703]
[1754199483973,0.4875196,113890.0,113880.0,0.20076069]
[1754199484174,0.4875196,113890.0,113880.0,0.54937703]
[1754199485172,0.4875196,113890.0,113880.0,0.02846069]
[1754199485437,0.96941594,113890.0,113880.0,0.00204769]
[1754199485780,0.97763719,113890.0,113880.0,0.00204769]
[1754199486398,0.97763719,113890.0,113880.0,0.00104769]
[1754199486547,0.97763726,113890.0,113880.0,4.769e-05]
[1754199487059,0.97863726,113890.0,113880.0,4.769e-05]
[1754199487466,0.63002092,113890.0,113880.0,4.769e-05]
[1754199487681,0.97863726,113890.0,113880.0,4.769e-05]
[1754199487907,0.97863726,113890.0,113880.0,0.03266769]
[1754199489722,0.4885196,113890.0,113880.0,0.43794443]
[1754199489928,0.0147486,113890.0,113880.0,0.78656077]
[1754199490368,0.0147486,113890.0,113880.0,0.43794443]
[1754199490791,0.0137486,113890.0,113880.0,0.43794443]
[1754199490942,0.0137486,113890.0,113880.0,0.39841205]
[1754199491747,0.282463,113900.0,113880.0,0.39841205]
[1754199491964,0.29068644,113900.0,113890.0,0.13396]
[1754199492177,0.29068644,113900.0,113890.0,0.17149]
[1754199492972,0.30443465,113900.0,113890.0,0.17149]
[1754199493631,0.30543465,113900.0,113890.0,0.17149]
[1754199494114,0.30543465,113900.0,113890.0,0.19381881]
[1754199494735,0.29168644,113900.0,113890.0,0.17149]
[1754199496592,0.09483333,113900.0,113890.0,0.17149]
[1754199496940,0.00922344,113900.0,113890.0,0.17149]
[1754199497942,0.02297177,113900.0,113890.0,0.17149]
[1754199498382,0.52297177,113900.0,113890.0,0.17149]
[1754199498580,0.52297177,113900.0,113890.0,0.2247272]
[1754199499196,0.52297177,113900.0,113890.0,0.17149]
[1754199499804,0.02297177,113900.0,113890.0,0.17149]
[1754199501460,0.33205573,113900.0,113890.0,0.03262]
[1754199501676,5.0,113890.0,113880.0,0.19609969]
[1754199501891,0.00822344,113890.0,113880.0,0.19609969]
[1754199502104,0.3173074,113890.0,113880.0,0.16674769]
[1754199502318,0.3173074,113890.0,113880.0,0.03266769]
[1754199503776,0.00822344,113890.0,113880.0,0.03560769]
[1754199504160,5.00822344,113890.0,113880.0,0.05718796]
[1754199504360,0.00822344,113890.0,113880.0,0.05718796]
[1754199504627,0.5,113890.0,113880.0,0.05718796]
[1754199504838,0.50822344,113890.0,113880.0,0.05718796]
[1754199505968,0.50822344,113890.0,113880.0,0.03757769]
[1754199509999,0.00822344,113890.0,113880.0,0.03757769]
[1754199510507,0.33105573,113900.0,113880.0,0.03757769]
[1754199510748,5.0,113890.0,113880.0,0.03757769]
[1754199510935,5.00822344,113890.0,113880.0,0.03757769]
[1754199511169,0.00822344,113890.0,113880.0,0.03757769]
[1754199511382,5.00822344,113890.0,113880.0,0.03757769]
[1754199511798,0.00822344,113890.0,113880.0,0.03757769]
[1754199511988,0.33105573,113900.0,113880.0,0.03757769]
[1754199512245,5.0,113890.0,113880.0,0.03757769]
[1754199512486,5.00822344,113890.0,113880.0,0.03757769]
[1754199512732,0.50822344,113890.0,113880.0,0.03757769]
[1754199513270,0.50822344,113890.0,113880.0,0.03699513]
[1754199514158,0.00822344,113890.0,113880.0,0.03502513]
[1754199514381,0.33105573,113900.0,113880.0,0.03208513]
[1754199514662,5.0,113890.0,113880.0,0.03208513]
[1754199514910,0.00822344,113890.0,113880.0,0.03208513]
[1754199515112,0.33105573,113900.0,113880.0,0.03208513]
[1754199515317,5.0,113890.0,113880.0,0.03532513]
[1754199515494,0.0082447,113890.0,113880.0,0.03532513]
[1754199516107,0.0082447,113890.0,113880.0,0.08580354]
[1754199516315,0.0082447,113890.0,113880.0,0.03532513]
[1754199517086,0.0082447,113890.0,113880.0,0.03744513]
[1754199522025,5.0,113880.0,113870.0,0.17335]
[1754199522249,0.0082447,113880.0,113870.0,0.03935778]
[1754199522455,0.0082447,113880.0,113870.0,4.778e-05]
[1754199522456,5.31732866,113880.0,113870.0,4.778e-05]
[1754199522672,5.41991628,113880.0,113870.0,4.778e-05]
[1754199522878,5.33107872,113880.0,113870.0,4.778e-05]
[1754199523098,5.37438109,113880.0,113870.0,4.778e-05]
[1754199523305,5.35788537,113880.0,113870.0,0.00104778]
[1754199523517,5.68345636,113880.0,113870.0,0.00104778]
[1754199523752,6.02345636,113880.0,113870.0,0.00104778]
[1754199523965,6.13128623,113880.0,113870.0,4.778e-05]
[1754199525231,5.99882573,113880.0,113870.0,4.778e-05]
[1754199525664,6.30790969,113880.0,113870.0,4.778e-05]
[1754199526320,6.50790969,113880.0,113870.0,4.778e-05]
[1754199526520,6.73290969,113880.0,113870.0,4.778e-05]
[1754199527106,6.73387895,113880.0,113870.0,4.778e-05]
[1754199527551,6.73187895,113880.0,113870.0,4.778e-05]
[1754199528171,6.73587895,113880.0,113870.0,4.778e-05]
[1754199528368,6.73287895,113880.0,113870.0,4.778e-05]
[1754199528725,6.73587895,113880.0,113870.0,4.778e-05]
[1754199531005,6.76230495,113880.0,113870.0,4.778e-05]
[1754199532787,1.76226684,113880.0,113870.0,4.778e-05]
[1754199533265,6.76226684,113880.0,113870.0,4.778e-05]
[1754199533768,0.96847546,113880.0,113870.0,4.778e-05]
[1754199533992,6.76226684,113880.0,113870.0,4.778e-05]
[1754199535955,6.38171013,113880.0,113870.0,4.778e-05]
[1754199536164,6.39546334,113880.0,113870.0,4.778e-05]
[1754199536853,1.39546334,113880.0,113870.0,4.778e-05]
[1754199537071,6.39546334,113880.0,113870.0,4.778e-05]
[1754199537544,6.42174435,113880.0,113870.0,4.778e-05]
[1754199538203,6.55654435,113880.0,113870.0,4.778e-05]
[1754199541218,6.55653562,113880.0,113870.0,4.778e-05]
[1754199544104,6.55653562,113880.0,113870.0,0.03720778]
[1754199546550,1.55653562,113880.0,113870.0,0.03720778]
[1754199546796,6.55653562,113880.0,113870.0,0.03720778]
[1754199549169,6.5565604,113880.0,113870.0,0.03720778]
[1754199549494,6.58024879,113880.0,113870.0,0.03720778]
[1754199550363,1.58024879,113880.0,113870.0,0.03720778]
[1754199550576,6.58024879,113880.0,113870.0,0.03720778]
[1754199551675,6.44544879,113880.0,113870.0,0.03720778]
[1754199551903,5.55499781,113880.0,113870.0,0.04220778]
[1754199552133,5.53130942,113880.0,113870.0,0.04220778]
[1754199552339,5.55499781,113880.0,113870.0,0.04220778]
[1754199552570,5.55199781,113880.0,113870.0,0.04220778]
[1754199552828,5.55099781,113880.0,113870.0,0.04220778]
[1754199553044,5.55299781,113880.0,113870.0,0.04220778]
[1754199553993,5.55499781,113880.0,113870.0,0.04220778]
[1754199554409,0.55499781,113880.0,113870.0,0.04220778]
[1754199554667,5.24591385,113880.0,113870.0,0.04220778]
[1754199554878,5.55499781,113880.0,113870.0,0.04220778]
[1754199556024,5.24591385,113880.0,113870.0,0.04220778]
[1754199556226,5.55499781,113880.0,113870.0,0.04220778]
[1754199556674,0.55499781,113880.0,113870.0,0.04220778]
[1754199556925,5.55499781,113880.0,113870.0,0.04220778]
[1754199557587,5.24591385,113880.0,113870.0,0.04220778]
[1754199557800,5.55499781,113880.0,113870.0,0.04220778]
[1754199559607,0.55499781,113880.0,113870.0,0.04220778]
[1754199559814,5.30722157,113880.0,113870.0,0.04220778]
[1754199560022,5.61630553,113880.0,113870.0,0.04220778]
[1754199560446,5.59987452,113880.0,113870.0,0.04220778]
[1754199560740,5.61637036,113880.0,113870.0,0.04220778]
[1754199561726,5.08777029,113880.0,113870.0,0.04220778]
[1754199561995,5.22217029,113880.0,113870.0,0.04220778]
[1754199562235,5.20841708,113880.0,113870.0,0.04220778]
[1754199562922,5.20641708,113880.0,113870.0,0.04220778]
[1754199563160,5.20741708,113880.0,113870.0,0.04220778]
[1754199563434,5.18842477,113880.0,113870.0,0.04220778]
[1754199563936,5.18642477,113880.0,113870.0,0.04220778]
[1754199568705,5.18642477,113880.0,113870.0,0.04907056]
[1754199568706,5.05202477,113880.0,113870.0,0.04907056]
[1754199568912,5.18630477,113880.0,113870.0,0.04220778]
[1754199569115,5.18629571,113880.0,113870.0,0.04220778]
[1754199569335,5.16979987,113880.0,113870.0,0.04220778]
[1754199570340,5.18355102,113880.0,113870.0,0.04220778]
[1754199570957,5.18355102,113880.0,113870.0,0.04320778]
[1754199572876,5.18255102,113880.0,113870.0,0.04320778]
[1754199577914,5.17431216,113880.0,113870.0,0.04320778]
[1754199578125,5.18254494,113880.0,113870.0,0.04320778]
[1754199582833,5.53045269,113880.0,113870.0,0.04320778]
[1754199585707,5.87836044,113880.0,113870.0,0.00104778]
[1754199585969,5.5469275,113880.0,113870.0,0.00104778]
[1754199586565,0.5469275,113880.0,113870.0,0.00104778]
[1754199586782,5.5479275,113880.0,113870.0,4.778e-05]
[1754199588901,5.50933609,113880.0,113870.0,4.778e-05]
[1754199589558,5.50933609,113880.0,113870.0,0.03648778]
[1754199590656,5.37505609,113880.0,113870.0,0.03648778]
[1754199590899,5.50929609,113880.0,113870.0,0.03648778]
[1754199591792,5.37505609,113880.0,113870.0,0.03648778]
[1754199592013,5.50929609,113880.0,113870.0,0.03648778]
[1754199592481,5.50931139,113880.0,113870.0,0.03648778]
[1754199593161,5.59814895,113880.0,113870.0,0.03648778]
[1754199593932,5.61715068,113880.0,113870.0,0.03648778]
[1754199594143,5.61715068,113880.0,113870.0,4.778e-05]
[1754199594693,5.60339953,113880.0,113870.0,4.778e-05]
[1754199594890,5.77902299,113880.0,113870.0,4.778e-05]
[1754199595079,5.77903627,113880.0,113870.0,4.778e-05]
[1754199595366,6.51335261,113880.0,113870.0,4.778e-05]
[1754199595586,6.53706969,113880.0,113870.0,4.778e-05]
[1754199597148,6.56206969,113880.0,113870.0,4.778e-05]
[1754199597599,6.56206969,113880.0,113840.0,0.03644]
[1754199597600,5.0,113850.0,113840.0,0.03644]
[1754199597837,5.55729007,113850.0,113840.0,0.03648778]
[1754199598520,0.55729007,113850.0,113840.0,0.03648778]
[1754199598732,5.46845251,113850.0,113840.0,0.03648778]
[1754199598962,0.48220822,113850.0,113840.0,0.03648778]
[1754199599098,5.48220822,113850.0,113840.0,0.03648778]
[1754199599297,5.15640177,113850.0,113840.0,0.03648778]
[1754199599531,5.46571811,113850.0,113840.0,0.03648778]
[1754199599725,5.57102151,113850.0,113840.0,0.03648778]
[1754199600143,5.26270517,113850.0,113840.0,0.03648778]
[1754199600362,5.74769125,113850.0,113840.0,4.778e-05]
[1754199600582,5.57202151,113850.0,113840.0,4.778e-05]
[1754199600780,5.76665353,113850.0,113840.0,4.778e-05]
[1754199600981,6.16665353,113850.0,113840.0,4.778e-05]
[1754199602147,6.20840747,113850.0,113840.0,4.778e-05]
[1754199602385,6.21663184,113850.0,113840.0,4.778e-05]
[1754199602599,5.9073155,113850.0,113840.0,4.778e-05]
[1754199602804,6.21663184,113850.0,113840.0,4.778e-05]
[1754199603214,6.21563184,113850.0,113840.0,4.778e-05]
[1754199603430,5.30931634,113830.0,113820.0,0.03412778]
[1754199603749,5.46233514,113830.0,113820.0,0.03417557]
[1754199603865,5.1530188,113830.0,113820.0,0.03417557]
[1754199604085,5.45964422,113830.0,113820.0,0.03417557]
[1754199604652,5.1447883,113830.0,113820.0,0.03417557]
[1754199604859,5.45410464,113830.0,113820.0,0.03417557]
[1754199605056,0.45410464,113830.0,113820.0,0.03417557]
[1754199605239,5.45410189,113830.0,113820.0,0.03417557]
[1754199605450,5.44588634,113830.0,113820.0,0.03417557]
[1754199605952,5.45410163,113830.0,113820.0,0.03417557]
[1754199606161,0.45410163,113830.0,113820.0,0.03417557]
[1754199606340,5.1629587,113830.0,113820.0,0.03417557]
[1754199606588,5.11725654,113830.0,113820.0,0.03417557]
[1754199607107,5.11725654,113830.0,113820.0,0.03730557]
[1754199607774,5.70143654,113830.0,113820.0,0.03730557]
[1754199607999,5.71519409,113830.0,113820.0,0.03730557]
[1754199609181,0.60615284,113830.0,113820.0,0.03730557]
[1754199609382,5.91546918,113830.0,113820.0,0.03730557]
[1754199609590,5.91699918,113830.0,113820.0,0.03730557]
[1754199612027,5.6965204,113830.0,113820.0,0.03730557]
[1754199612251,5.91699918,113830.0,113820.0,0.03730557]
[1754199612478,5.90324163,113830.0,113820.0,0.03730557]
[1754199614295,5.91965209,113830.0,113820.0,0.03417557]
[1754199614450,5.5739579,113830.0,113820.0,0.03417557]
[1754199615285,5.5739579,113830.0,113820.0,0.03730557]
[1754199615739,5.72215545,113830.0,113820.0,0.03730557]
[1754199617092,5.72215951,113830.0,113820.0,0.03930557]
[1754199619336,5.72062951,113830.0,113820.0,0.03930557]
[1754199619773,5.80946707,113830.0,113820.0,0.03930557]
[1754199620245,5.81099707,113830.0,113820.0,0.03930557]
[1754199620789,5.50168073,113830.0,113820.0,0.03930557]
[1754199621005,5.72215951,113830.0,113820.0,0.03930557]
[1754199621176,5.43177328,113830.0,113820.0,0.03930557]
[1754199621586,0.43177328,113830.0,113820.0,0.03930557]
[1754199621794,5.43177328,113830.0,113820.0,0.03930557]
[1754199622849,5.78003441,113830.0,113820.0,0.03930557]
[1754199624661,0.78003441,113830.0,113820.0,0.03930557]
[1754199625033,5.78003441,113830.0,113820.0,0.03930557]
[1754199626355,5.4555025,113830.0,113820.0,0.03930557]
[1754199626542,5.81200154,113830.0,113820.0,0.03930557]
[1754199626788,0.81200154,113830.0,113820.0,0.03930557]
[1754199626990,5.81200154,113830.0,113820.0,0.03930557]
[1754199628535,5.81207508,113830.0,113820.0,0.03930557]
[1754199630508,5.46381395,113830.0,113820.0,0.03930557]
[1754199630718,5.81207508,113830.0,113820.0,0.03930557]
[1754199634106,0.81207508,113830.0,113820.0,0.03930557]
[1754199634327,0.81205076,113830.0,113820.0,0.03930557]
[1754199634744,5.81205076,113830.0,113820.0,0.03930557]
[1754199635322,5.32938963,113830.0,113820.0,0.03930557]
[1754199635536,5.81201076,113830.0,113820.0,0.03930557]
[1754199635952,5.81201158,113830.0,113820.0,0.03930557]
[1754199636803,5.67765158,113830.0,113820.0,0.03930557]
[1754199637025,5.81197158,113830.0,113820.0,0.03930557]
[1754199638597,5.67765158,113830.0,113820.0,0.03930557]
[1754199639000,5.81201158,113830.0,113820.0,0.03930557]
[1754199641424,0.81201158,113830.0,113820.0,0.03930557]
[1754199641624,5.81201158,113830.0,113820.0,0.03930557]
[1754199643084,5.81203931,113830.0,113820.0,0.03930557]
[1754199644359,5.78831009,113830.0,113820.0,0.03930557]
[1754199645476,5.77455294,113830.0,113820.0,0.03930557]
[1754199646093,5.77455373,113830.0,113820.0,0.03930557]
[1754199648326,5.78831154,113830.0,113820.0,0.03930557]
[1754199648738,5.77455373,113830.0,113820.0,0.03930557]
[1754199648957,5.78831127,113830.0,113820.0,0.03930557]
[1754199649652,0.78831127,113830.0,113820.0,0.03930557]
[1754199649860,5.78831127,113830.0,113820.0,0.03930557]
[1754199651785,0.78831139,113830.0,113820.0,0.03930557]
[1754199651984,5.78831139,113830.0,113820.0,0.03930557]
[1754199654914,0.78831139,113830.0,113820.0,0.03930557]
[1754199655134,5.78831139,113830.0,113820.0,0.03930557]
[1754199655998,0.78831139,113830.0,113820.0,0.03930557]
[1754199656221,5.78831139,113830.0,113820.0,0.03930557]
[1754199659836,5.80095866,113830.0,113820.0,0.03930557]
[1754199660712,5.78840663,113830.0,113820.0,0.03930557]
[1754199662908,5.4401455,113830.0,113820.0,0.03930557]
[1754199663118,5.78840663,113830.0,113820.0,0.03930557]
[1754199666411,5.77464909,113830.0,113820.0,0.03930557]
[1754199667742,5.42638796,113830.0,113820.0,0.03930557]
[1754199667956,5.77464909,113830.0,113820.0,0.03930557]
[1754199669193,5.77465018,113830.0,113820.0,0.03930557]
[1754199669598,5.77465018,113830.0,113820.0,0.03730557]
[1754199670621,5.78840803,113830.0,113820.0,0.03730557]
[1754199673539,0.78840803,113830.0,113820.0,0.03730557]
[1754199673757,5.78840804,113830.0,113820.0,0.03730557]
[1754199679596,5.78840803,113830.0,113820.0,0.03730557]
[1754199681241,0.78840803,113830.0,113820.0,0.03730557]
[1754199681453,5.78840803,113830.0,113820.0,0.03730557]
[1754199683795,5.4401469,113830.0,113820.0,0.03730557]
[1754199683994,5.78840803,113830.0,113820.0,0.03730557]
[1754199684449,0.78840803,113830.0,113820.0,0.03730557]
[1754199684695,5.78840803,113830.0,113820.0,0.03730557]
[1754199685698,6.05527537,113830.0,113820.0,0.03730557]
[1754199687621,1.05527537,113830.0,113820.0,0.03730557]
[1754199687820,6.05527537,113830.0,113820.0,0.03730557]
[1754199688635,1.05527537,113830.0,113820.0,0.03730557]
[1754199688854,6.05527537,113830.0,113820.0,0.03730557]
[1754199689420,5.70701424,113830.0,113820.0,0.03730557]
[1754199689634,6.05527537,113830.0,113820.0,0.03417557]
[1754199690460,5.70701424,113830.0,113820.0,0.03417557]
[1754199690663,0.70701424,113830.0,113820.0,0.03934557]
[1754199690868,5.70701424,113830.0,113820.0,0.03934557]
[1754199692178,6.31981353,113830.0,113820.0,4.779e-05]
[1754199692457,6.32076353,113830.0,113820.0,4.779e-05]
[1754199692680,6.23192597,113830.0,113820.0,4.779e-05]
[1754199692890,6.23097597,113830.0,113820.0,4.779e-05]
[1754199693191,6.05527537,113830.0,113820.0,4.779e-05]
[1754199693422,6.05527537,113830.0,113820.0,0.03653779]
[1754199693867,1.05527537,113830.0,113820.0,0.03653779]
[1754199694074,6.05527537,113830.0,113820.0,0.03653779]
[1754199694759,6.31981353,113830.0,113820.0,4.779e-05]
[1754199695228,6.14411293,113830.0,113820.0,4.779e-05]
[1754199695457,6.63192597,113830.0,113820.0,4.779e-05]
[1754199695658,6.65570766,113830.0,113820.0,4.779e-05]
[1754199695870,6.64194981,113830.0,113820.0,4.779e-05]
[1754199696290,6.64194846,113830.0,113820.0,4.779e-05]
[1754199696715,6.64394846,113830.0,113820.0,4.779e-05]
[1754199696909,6.64394241,113830.0,113820.0,4.779e-05]
[1754199697112,6.51258241,113830.0,113820.0,4.779e-05]
[1754199697331,6.49276002,113830.0,113820.0,4.779e-05]
[1754199698398,6.46897833,113830.0,113820.0,4.779e-05]
[1754199698614,6.4827374,113830.0,113820.0,4.779e-05]
[1754199698879,6.658438,113830.0,113820.0,4.779e-05]
[1754199699935,6.657488,113830.0,113820.0,4.779e-05]
[1754199701052,6.4817874,113830.0,113820.0,4.779e-05]
[1754199701487,6.45990919,113830.0,113820.0,4.779e-05]
[1754199702591,6.45990919,113830.0,113820.0,0.03653779]
[1754199703672,5.57611806,113830.0,113820.0,0.04170779]
[1754199703888,6.05829919,113830.0,113820.0,0.04170779]
[1754199704104,6.04454012,113830.0,113820.0,0.04170779]
[1754199705172,6.04154012,113830.0,113820.0,0.04170779]
[1754199705632,6.04354012,113830.0,113820.0,0.04170779]
[1754199705847,6.04154012,113830.0,113820.0,0.04170779]
[1754199706275,6.04254012,113830.0,113820.0,0.04170779]
[1754199707383,6.05629876,113830.0,113820.0,0.04170779]
[1754199707582,5.57411763,113830.0,113820.0,0.04170779]
[1754199707801,5.57411763,113830.0,113820.0,0.77722694]
[1754199708002,5.70803763,113830.0,113820.0,0.77722694]
[1754199708427,5.68901228,113830.0,113820.0,0.77722694]
[1754199708855,5.68701228,113830.0,113820.0,0.73823005]
[1754199709534,5.68701228,113830.0,113820.0,0.38996892]
[1754199709706,5.68601228,113830.0,113820.0,0.38996892]
[1754199709926,5.68601228,113830.0,113820.0,0.39096892]
[1754199710846,0.68601228,113830.0,113820.0,0.39096892]
[1754199711220,5.68601228,113830.0,113820.0,0.39096892]
[1754199711430,5.23731228,113830.0,113820.0,0.39096892]
[1754199712019,5.23731228,113830.0,113820.0,0.39196892]
[1754199713501,5.22080461,113830.0,113820.0,0.39196892]
[1754199716004,5.15593617,113830.0,113820.0,0.39196892]
[1754199718584,5.15593617,113830.0,113820.0,0.04370779]
[1754199718800,5.15593617,113830.0,113820.0,0.39196892]
[1754199722198,0.15593617,113830.0,113820.0,0.39196892]
[1754199722395,5.15593617,113830.0,113820.0,0.39196892]
[1754199734018,5.15601617,113830.0,113820.0,0.39196892]
[1754199735446,5.02201617,113830.0,113820.0,0.79547804]
[1754199735603,5.14221753,113830.0,113820.0,0.74023005]
[1754199736836,5.14221753,113830.0,113820.0,0.04370779]
[1754199737218,5.14221753,113830.0,113820.0,0.74023005]
[1754199738042,5.15597437,113830.0,113820.0,0.74023005]
[1754199739076,5.15597437,113830.0,113820.0,0.04370779]
[1754199739280,5.15597437,113830.0,113820.0,0.74023005]
[1754199739684,5.15597437,113830.0,113820.0,0.39196892]
[1754199741658,5.15597437,113830.0,113820.0,0.04370779]
[1754199741816,5.15597437,113830.0,113820.0,0.39196892]
[1754199745012,5.15596721,113830.0,113820.0,0.39196892]
[1754199745407,5.15749721,113830.0,113820.0,0.39196892]
[1754199746225,5.15596721,113830.0,113820.0,0.39196892]
[1754199746956,0.15596721,113830.0,113820.0,0.39196892]
[1754199747150,5.15596721,113830.0,113820.0,0.39196892]
[1754199756285,5.15596734,113830.0,113820.0,0.39196892]
[1754199759631,5.15596822,113830.0,113820.0,0.39196892]
[1754199762313,0.15596822,113830.0,113820.0,0.39196892]
[1754199762448,0.15749822,113830.0,113820.0,0.39196892]
[1754199762670,5.15749822,113830.0,113820.0,0.39196892]
[1754199764544,5.17400649,113830.0,113820.0,0.39196892]
[1754199765487,5.17400813,113830.0,113820.0,0.39196892]
[1754199770233,5.17400813,113830.0,113820.0,0.03853779]
[1754199770456,5.17400813,113830.0,113820.0,0.00204779]
[1754199770669,5.17495813,113830.0,113820.0,0.00204779]
[1754199771101,5.17495813,113830.0,113820.0,0.35030892]
[1754199771319,5.17400813,113830.0,113820.0,0.35030892]
[1754199772267,5.17400813,113830.0,113820.0,0.38534892]
[1754199773400,0.17400813,113830.0,113820.0,0.38534892]
[1754199773611,5.17400813,113830.0,113820.0,0.38534892]
[1754199773749,5.15749822,113830.0,113820.0,0.38534892]
[1754199773973,5.17400796,113830.0,113820.0,0.38534892]
[1754199775283,0.17400796,113830.0,113820.0,0.38534892]
[1754199775490,5.17400796,113830.0,113820.0,0.38534892]
[1754199776926,4.951712,113830.0,113820.0,0.38534892]
[1754199777137,4.96546899,113830.0,113820.0,0.38844892]
[1754199777380,4.951712,113830.0,113820.0,0.38844892]
[1754199778141,5.085512,113830.0,113820.0,0.38844892]
[1754199779940,5.085512,113830.0,113820.0,0.04018779]
[1754199780283,5.085512,113830.0,113820.0,0.38844892]
[1754199781511,5.09926897,113830.0,113820.0,0.38844892]
[1754199784659,5.085512,113830.0,113820.0,0.38844892]
[1754199787191,5.085512,113830.0,113820.0,0.39048892]
[1754199787846,5.09926897,113830.0,113820.0,0.39048892]
[1754199788875,5.1240298,113830.0,113820.0,0.39048892]
[1754199790280,5.12402994,113830.0,113820.0,0.39048892]
[1754199793061,5.09926897,113830.0,113820.0,0.39048892]
[1754199793246,5.12403056,113830.0,113820.0,0.39048892]
[1754199794240,5.12403056,113830.0,113820.0,0.04222779]
[1754199794674,5.12403056,113830.0,113820.0,0.39048892]
[1754199795559,4.98920254,113830.0,113820.0,0.39048892]
[1754199796086,4.97647359,113830.0,113820.0,0.39048892]